fUSD/lending_fUSD_20250911
["ID","MTS","AMOUNT","RATE_DAILY","PERIOD"]
[384825739,1757575676838,-400.0,0.00030229,7]
[384825740,1757575676867,-405.43827498,0.00030229,7]
[384825741,1757575676896,-400.0,0.00030229,7]
[384825742,1757575676925,-400.0,0.00030229,7]
[384825743,1757575676953,-601.8,0.00030229,7]
[384825744,1757575676982,-400.0,0.00030229,7]
[384825745,1757575677013,-400.0,0.00030229,7]
[384825746,1757575677040,-400.0,0.00030229,7]
[384825747,1757575677068,-400.0,0.00030229,7]
[384825748,1757575677096,-407.39336768,0.00030229,7]
[384825749,1757575677127,-400.0,0.00030229,7]
[384825750,1757575677154,-411.6,0.00030229,7]
[384825751,1757575677183,-400.0,0.00030229,7]
[384825752,1757575677213,-400.0,0.00030229,7]
[384825753,1757575677240,-400.0,0.00030229,7]
[384825754,1757575677267,-466.94,0.00030229,7]
[384825755,1757575677295,-400.0,0.00030229,7]
[384825756,1757575677322,-400.0,0.00030229,7]
[384825757,1757575677350,-400.0,0.00030229,7]
[384825758,1757575677377,-400.0,0.00030229,7]
[384825759,1757575677406,-400.0,0.00030229,7]
[384825760,1757575677433,-400.0,0.00030229,7]
[384825761,1757575677461,-402.19,0.00030229,7]
[384825762,1757575677488,-400.0,0.00030229,7]
[384825763,1757575677515,-400.0,0.00030229,7]
[384825764,1757575677549,-410.07890138,0.00030229,7]
[384825765,1757575677577,-400.0,0.00030229,7]
[384825766,1757575677606,-400.0,0.00030229,7]
[384825767,1757575677635,-400.0,0.00030229,7]
[384825768,1757575677663,-400.0,0.00030229,7]
[384825769,1757575677691,-400.0,0.00030229,7]
[384825770,1757575677718,-647.33,0.00030229,7]
[384825771,1757575677747,-400.0,0.00030229,7]
[384825772,1757575677776,-400.0,0.00030229,7]
[384825773,1757575677804,-400.0,0.00030229,7]
[384825774,1757575677834,-400.0,0.00030229,7]
[384825775,1757575677862,-400.0,0.00030229,7]
[384825776,1757575677892,-400.0,0.00030229,7]
[384825777,1757575677920,-236.31427767,0.00030229,7]
[384825778,1757575677948,-400.0,0.00030229,7]
[384825779,1757575678279,-530.73,0.00030229,7]
[384825780,1757575678309,-400.0,0.00030229,7]
[384825781,1757575678338,-407.29816656,0.00030229,7]
[384825782,1757575678366,-400.0,0.00030229,7]
[384825783,1757575678394,-400.0,0.00030229,7]
[384825784,1757575678423,-400.0,0.00030229,7]
[384825785,1757575678451,-400.0,0.00030229,7]
[384825786,1757575678481,-400.0,0.00030229,7]
[384825787,1757575678511,-400.0,0.00030229,7]
[384825788,1757575678540,-400.0,0.00030229,7]
[384825789,1757575678568,-409.27772522,0.00030229,7]
[384825790,1757575678597,-691.29,0.00030229,7]
[384825791,1757575678625,-491.35,0.00030229,7]
[384825792,1757575678653,-431.76855756,0.00030229,7]
[384825793,1757575678683,-400.0,0.00030229,7]
[384825794,1757575678715,-400.0,0.00030229,7]
[384825795,1757575678747,-557.73,0.00030229,7]
[384825796,1757575678775,-530.31,0.00030229,7]
[384825797,1757575678806,-400.0,0.00030229,7]
[384825798,1757575678837,-400.0,0.00030229,7]
[384825799,1757575678866,-400.0,0.00030229,7]
[384825800,1757575678896,-400.0,0.00030229,7]
[384825801,1757575678926,-403.7193293,0.00030229,7]
[384825802,1757575678957,-400.0,0.00030229,7]
[384825803,1757575678987,-400.0,0.00030229,7]
[384825804,1757575679017,-394.62318542,0.00030229,7]
[384825805,1757575679045,-400.0,0.00030229,7]
[384825806,1757575679075,-400.0,0.00030229,7]
[384825807,1757575679104,-404.98180708,0.00030229,7]
[384825808,1757575679132,-400.0,0.00030229,7]
[384825809,1757575679161,-400.0,0.00030229,7]
[384825810,1757575679193,-400.0,0.00030229,7]
[384825811,1757575679221,-400.0,0.00030229,7]
[384825812,1757575679251,-400.0,0.00030229,7]
[384825813,1757575679282,-400.0,0.00030229,7]
[384825814,1757575679313,-400.0,0.00030229,7]
[384825815,1757575679346,-400.0,0.00030229,7]
[384825816,1757575679376,-400.0,0.00030229,7]
[384825817,1757575679413,-400.0,0.00030229,7]
[384825818,1757575679451,-400.0,0.00030229,7]
[384825819,1757575679485,-400.0,0.00030229,7]
[384825820,1757575679517,-548.54,0.00030229,7]
[384825821,1757575679549,-400.0,0.00030229,7]
[384825822,1757575679580,-400.0,0.00030229,7]
[384825823,1757575679614,-400.0,0.00030229,7]
[384825824,1757575679647,-683.63,0.00030229,7]
[384825825,1757575679680,-400.0,0.00030229,7]
[384825826,1757575679713,-400.0,0.00030229,7]
[384825827,1757575679744,-400.0,0.00030229,7]
[384825828,1757575679775,-400.0,0.00030229,7]
[384825829,1757575679806,-403.9,0.00030229,7]
[384825830,1757575679836,-400.0,0.00030229,7]
[384825831,1757575679866,-400.0,0.00030229,7]
[384825832,1757575679895,-400.0,0.00030229,7]
[384825833,1757575679924,-400.0,0.00030229,7]
[384825834,1757575679961,-400.0,0.00030229,7]
[384825835,1757575679991,-406.04780299,0.00030229,7]
[384825836,1757575680022,-400.0,0.00030229,7]
[384825837,1757575680053,-400.0,0.00030229,7]
[384825838,1757575680085,-400.0,0.00030229,7]
[384825839,1757575680123,-400.0,0.00030229,7]
[384825840,1757575680156,-400.0,0.00030229,7]
[384825841,1757575680188,-400.0,0.00030229,7]
[384825842,1757575680220,-400.0,0.00030229,7]
[384825843,1757575680253,-400.0,0.00030229,7]
[384825844,1757575680286,-400.0,0.00030229,7]
[384825845,1757575680319,-400.0,0.00030229,7]
[384825846,1757575680349,-400.0,0.00030229,7]
[384825847,1757575680379,-400.0,0.00030229,7]
[384825848,1757575680410,-400.0,0.00030229,7]
[384825849,1757575680440,-400.0,0.00030229,7]
[384825850,1757575680470,-408.22537763,0.00030229,7]
[384825851,1757575680504,-400.0,0.00030229,7]
[384825852,1757575680535,-400.0,0.00030229,7]
[384825853,1757575680567,-400.0,0.00030229,7]
[384825854,1757575680599,-400.0,0.00030229,7]
[384825855,1757575680629,-400.0,0.00030229,7]
[384825856,1757575680661,-614.05,0.00030229,7]
[384825857,1757575680690,-432.81093983,0.00030229,7]
[384825858,1757575680721,-455.58,0.00030229,7]
[384825859,1757575680754,-400.0,0.00030229,7]
[384825860,1757575680786,-400.0,0.00030229,7]
[384825861,1757575680822,-411.10022793,0.00030229,7]
[384825862,1757575680855,-400.0,0.00030229,7]
[384825863,1757575680886,-406.16581731,0.00030229,7]
[384825864,1757575680919,-400.0,0.00030229,7]
[384825865,1757575680950,-400.0,0.00030229,7]
[384825866,1757575680982,-400.0,0.00030229,7]
[384825867,1757575681012,-400.0,0.00030229,7]
[384825868,1757575681043,-400.0,0.00030229,7]
[384825869,1757575681073,-400.0,0.00030229,7]
[384825870,1757575681103,-400.0,0.00030229,7]
[384825871,1757575681137,-416.66605516,0.00030229,7]
[384825872,1757575681170,-400.0,0.00030229,7]
[384825873,1757575681202,-400.0,0.00030229,7]
[384825874,1757575681230,-400.0,0.00030229,7]
[384825875,1757575681259,-400.0,0.00030229,7]
[384825876,1757575681289,-400.0,0.00030229,7]
[384825877,1757575681318,-400.0,0.00030229,7]
[384825878,1757575681350,-400.0,0.00030229,7]
[384825879,1757575681384,-400.0,0.00030229,7]
[384825880,1757575681415,-540.2,0.00030229,7]
[384825881,1757575681445,-400.0,0.00030229,7]
[384825882,1757575681477,-425.06165095,0.00030229,7]
[384825883,1757575681813,-400.0,0.00030229,7]
[384825884,1757575681857,-461.12681919,0.00030229,7]
[384825885,1757575681899,-400.0,0.00030229,7]
[384825886,1757575681933,-400.0,0.00030229,7]
[384825887,1757575681966,-400.0,0.00030229,7]
[384825888,1757575681998,-400.0,0.00030229,7]
[384825889,1757575682029,-400.0,0.00030229,7]
[384825890,1757575682060,-400.0,0.00030229,7]
[384825891,1757575682092,-400.0,0.00030229,7]
[384825892,1757575682122,-472.83,0.00030229,7]
[384825893,1757575682154,-400.0,0.00030229,7]
[384825894,1757575682186,-485.21186901,0.00030229,7]
[384825895,1757575682223,-400.0,0.00030229,7]
[384825896,1757575682255,-557.87,0.00030229,7]
[384825897,1757575682286,-400.0,0.00030229,7]
[384825898,1757575682316,-400.0,0.00030229,7]
[384825899,1757575682348,-561.28,0.00030229,7]
[384825900,1757575682381,-400.0,0.00030229,7]
[384825901,1757575682417,-425.46195155,0.00030229,7]
[384825902,1757575682451,-400.0,0.00030229,7]
[384825903,1757575682482,-479.91951294,0.00030229,7]
[384825904,1757575682515,-400.0,0.00030229,7]
[384825905,1757575682549,-400.0,0.00030229,7]
[384825906,1757575682584,-400.0,0.00030229,7]
[384825907,1757575682617,-438.62,0.00030229,7]
[384825908,1757575682650,-400.0,0.00030229,7]
[384825909,1757575682683,-400.0,0.00030229,7]
[384825910,1757575682717,-407.71923064,0.00030229,7]
[384825911,1757575682750,-400.0,0.00030229,7]
[384825912,1757575682782,-406.01382659,0.00030229,7]
[384825913,1757575682816,-465.13,0.00030229,7]
[384825914,1757575682849,-400.0,0.00030229,7]
[384825915,1757575682882,-400.0,0.00030229,7]
[384825916,1757575682916,-400.0,0.00030229,7]
[384825917,1757575682947,-417.85670547,0.00030229,7]
[384825918,1757575682980,-400.0,0.00030229,7]
[384825919,1757575683017,-400.0,0.00030229,7]
[384825920,1757575683051,-400.0,0.00030229,7]
[384825921,1757575683087,-400.0,0.00030229,7]
[384825922,1757575683124,-404.74389336,0.00030229,7]
[384825923,1757575683160,-400.0,0.00030229,7]
[384825924,1757575683201,-918.47,0.00030229,7]
[384825925,1757575683236,-400.0,0.00030229,7]
[384825926,1757575683270,-400.0,0.00030229,7]
[384825927,1757575683306,-400.0,0.00030229,7]
[384825928,1757575683340,-400.0,0.00030229,7]
[384825929,1757575683374,-400.0,0.00030229,7]
[384825930,1757575683409,-400.0,0.00030229,7]
[384825931,1757575683449,-400.0,0.00030229,7]
[384825932,1757575683482,-400.0,0.00030229,7]
[384825933,1757575683515,-400.0,0.00030229,7]
[384825934,1757575683548,-400.0,0.00030229,7]
[384825935,1757575683580,-400.0,0.00030229,7]
[384825936,1757575683611,-400.0,0.00030229,7]
[384825937,1757575683644,-400.0,0.00030229,7]
[384825938,1757575683677,-400.0,0.00030229,7]
[384825939,1757575683709,-400.0,0.00030229,7]
[384825940,1757575683742,-400.0,0.00030229,7]
[384825941,1757575683774,-400.0,0.00030229,7]
[384825942,1757575683806,-411.14426939,0.00030229,7]
[384825943,1757575683840,-400.0,0.00030229,7]
[384825944,1757575683873,-400.0,0.00030229,7]
[384825945,1757575683907,-400.0,0.00030229,7]
[384825946,1757575683939,-400.0,0.00030229,7]
[384825947,1757575683971,-400.0,0.00030229,7]
[384825948,1757575684004,-400.0,0.00030229,7]
[384825949,1757575684036,-415.4746955,0.00030229,7]
[384825950,1757575684069,-606.1,0.00030229,7]
[384825951,1757575684103,-400.0,0.00030229,7]
[384825952,1757575684137,-400.0,0.00030229,7]
[384825953,1757575684171,-400.0,0.00030229,7]
[384825954,1757575684205,-404.56830967,0.00030229,7]
[384825955,1757575684237,-400.0,0.00030229,7]
[384825956,1757575684269,-400.0,0.00030229,7]
[384825957,1757575684302,-410.48291397,0.00030229,7]
[384825958,1757575684335,-415.35456092,0.00030229,7]
[384825959,1757575684371,-400.0,0.00030229,7]
[384825960,1757575684404,-400.0,0.00030229,7]
[384825961,1757575684436,-400.0,0.00030229,7]
[384825962,1757575684468,-418.64037624,0.00030229,7]
[384825963,1757575684499,-400.0,0.00030229,7]
[384825964,1757575684530,-400.0,0.00030229,7]
[384825965,1757575684560,-400.0,0.00030229,7]
[384825966,1757575684591,-400.0,0.00030229,7]
[384825967,1757575684622,-400.0,0.00030229,7]
[384825968,1757575684653,-400.0,0.00030229,7]
[384825969,1757575684684,-501.93,0.00030229,7]
[384825970,1757575684713,-405.24248273,0.00030229,7]
[384825971,1757575684745,-255.34698272,0.00030229,7]
[384825972,1757575684775,-400.0,0.00030229,7]
[384825973,1757575684806,-400.0,0.00030229,7]
[384825974,1757575684836,-573.12,0.00030229,7]
[384825975,1757575684867,-400.0,0.00030229,7]
[384825976,1757575684898,-400.0,0.00030229,7]
[384825977,1757575684929,-433.31,0.00030229,7]
[384825978,1757575684960,-400.0,0.00030229,7]
[384825979,1757575684991,-400.0,0.00030229,7]
[384825980,1757575685022,-400.0,0.00030229,7]
[384825981,1757575685053,-463.05,0.00030229,7]
[384825982,1757575685086,-400.0,0.00030229,7]
[384825983,1757575685117,-1356.44,0.00030229,7]
[384825984,1757575685149,-400.0,0.00030229,7]
[384825985,1757575685180,-578.32,0.00030229,7]
[384825986,1757575685218,-400.0,0.00030229,7]
[384825987,1757575685475,-400.0,0.00030229,7]
[384825988,1757575685507,-400.0,0.00030229,7]
[384825989,1757575685540,-1359.89,0.00030229,7]
[384825990,1757575685571,-400.0,0.00030229,7]
[384825991,1757575685604,-1806.14,0.00030229,7]
[384825992,1757575685636,-400.0,0.00030229,7]
[384825993,1757575685668,-404.07247124,0.00030229,7]
[384825994,1757575685699,-608.41,0.00030229,7]
[384825995,1757575685732,-400.0,0.00030229,7]
[384825996,1757575685763,-696.45,0.00030229,7]
[384825997,1757575685796,-637.77,0.00030229,7]
[384825998,1757575685827,-1626.09,0.00030229,7]
[384825999,1757575685857,-400.0,0.00030229,7]
[384826000,1757575685890,-626.46,0.00030229,7]
[384826001,1757575685921,-406.35838855,0.00030229,7]
[384826002,1757575685952,-400.0,0.00030229,7]
[384826003,1757575685984,-400.0,0.00030229,7]
[384826004,1757575686016,-616.52,0.00030229,7]
[384826005,1757575686047,-400.0,0.00030229,7]
[384826006,1757575686077,-400.0,0.00030229,7]
[384826007,1757575686107,-400.0,0.00030229,7]
[384826008,1757575686138,-653.46,0.00030229,7]
[384826009,1757575686172,-402.754525,0.00030229,7]
[384826010,1757575686203,-1617.35,0.00030229,7]
[384826011,1757575686231,-400.0,0.00030229,7]
[384826012,1757575686260,-400.0,0.00030229,7]
[384826013,1757575686289,-400.0,0.00030229,7]
[384826014,1757575686320,-400.0,0.00030229,7]
[384826015,1757575686350,-670.61,0.00030229,7]
[384826016,1757575686381,-400.0,0.00030229,7]
[384826017,1757575686411,-400.0,0.00030229,7]
[384826018,1757575686440,-400.0,0.00030229,7]
[384826019,1757575686470,-671.69,0.00030229,7]
[384826020,1757575686500,-400.0,0.00030229,7]
[384826021,1757575686530,-411.2695607,0.00030229,7]
[384826022,1757575686560,-1513.52,0.00030229,7]
[384826023,1757575686589,-412.24205558,0.00030229,7]
[384826024,1757575686618,-400.0,0.00030229,7]
[384826025,1757575686648,-400.0,0.00030229,7]
[384826026,1757575686679,-1201.96,0.00030229,7]
[384826027,1757575686708,-400.0,0.00030229,7]
[384826028,1757575686739,-418.75379238,0.00030229,7]
[384826029,1757575686770,-5044.09,0.00030229,7]
[384826030,1757575686800,-400.0,0.00030229,7]
[384826031,1757575686831,-679.58,0.00030229,7]
[384826032,1757575686864,-400.0,0.00030229,7]
[384826033,1757575686897,-400.0,0.00030229,7]
[384826034,1757575686928,-400.0,0.00030229,7]
[384826035,1757575686960,-1565.26,0.00030229,7]
[384826036,1757575686993,-3682.48,0.00030229,7]
[384826037,1757575687026,-400.0,0.00030229,7]
[384826038,1757575687057,-409.65545173,0.00030229,7]
[384826039,1757575687087,-405.60744831,0.00030229,7]
[384826040,1757575687117,-400.0,0.00030229,7]
[384826041,1757575687148,-502.42,0.00030229,7]
[384826042,1757575687180,-1240.15,0.00030229,7]
[384826043,1757575687214,-1754.63,0.00030229,7]
[384826044,1757575687244,-400.0,0.00030229,7]
[384826045,1757575687274,-400.0,0.00030229,7]
[384826046,1757575687304,-400.0,0.00030229,7]
[384826047,1757575687334,-400.0,0.00030229,7]
[384826048,1757575687364,-400.0,0.00030229,7]
[384826049,1757575687395,-400.0,0.00030229,7]
[384826050,1757575687426,-400.0,0.00030229,7]
[384826051,1757575687456,-400.0,0.00030229,7]
[384826052,1757575687487,-1306.14,0.00030229,7]
[384826053,1757575687518,-400.0,0.00030229,7]
[384826054,1757575687547,-402.28771354,0.00030229,7]
[384826055,1757575687578,-406.77824179,0.00030229,7]
[384826056,1757575687607,-405.34469897,0.00030229,7]
[384826057,1757575687638,-400.0,0.00030229,7]
[384826058,1757575687669,-565.19,0.00030229,7]
[384826059,1757575687701,-400.0,0.00030229,7]
[384826060,1757575687732,-400.0,0.00030229,7]
[384826061,1757575687762,-400.0,0.00030229,7]
[384826062,1757575687793,-458.84,0.00030229,7]
[384826063,1757575687823,-400.0,0.00030229,2]
[384826064,1757575687854,-788.19,0.00030229,7]
[384826065,1757575687888,-400.0,0.00030229,7]
[384826066,1757575687922,-1836.18,0.00030229,7]
[384826067,1757575687952,-403.64180962,0.00030229,7]
[384826068,1757575687982,-411.18630001,0.00030229,7]
[384826069,1757575688013,-400.0,0.00030229,7]
[384826070,1757575688043,-400.0,0.00030229,7]
[384826071,1757575688075,-400.0,0.00030229,7]
[384826072,1757575688105,-400.0,0.00030229,7]
[384826073,1757575688136,-400.0,0.00030229,7]
[384826074,1757575688168,-400.0,0.00030229,7]
[384826075,1757575688200,-400.0,0.00030229,7]
[384826076,1757575688232,-400.0,0.00030229,7]
[384826077,1757575688262,-400.0,0.00030229,7]
[384826078,1757575688292,-400.0,0.00030229,7]
[384826079,1757575688324,-680.77,0.00030229,7]
[384826080,1757575688354,-400.0,0.00030229,7]
[384826081,1757575688385,-400.0,0.00030229,7]
[384826082,1757575688422,-400.0,0.00030229,7]
[384826083,1757575688453,-464.44,0.00030229,7]
[384826084,1757575688484,-400.0,0.00030229,7]
[384826085,1757575688515,-410.11,0.00030229,7]
[384826086,1757575688547,-2091.49,0.00030229,7]
[384826087,1757575688577,-400.0,0.00030229,7]
[384826088,1757575688609,-400.0,0.00030229,7]
[384826089,1757575688640,-477.3,0.00030229,7]
[384826090,1757575688672,-430.47,0.00030229,7]
[384826091,1757575688935,-400.0,0.00030229,7]
[384826092,1757575688966,-202.31178918,0.00030229,7]
[384826093,1757575688995,-400.0,0.00030229,7]
[384826094,1757575689025,-535.95456542,0.00030229,7]
[384826095,1757575689055,-400.0,0.00030229,7]
[384826096,1757575689085,-400.0,0.00030229,7]
[384826097,1757575689115,-400.0,0.00030229,7]
[384826098,1757575689144,-400.0,0.00030229,7]
[384826099,1757575689176,-607.04,0.00030229,7]
[384826100,1757575689209,-4677.44,0.00030229,7]
[384826101,1757575689239,-1000.0,0.00030229,7]
[384826102,1757575689269,-645.11,0.00030229,7]
[384826103,1757575689299,-668.6,0.00030229,7]
[384826104,1757575689329,-400.0,0.00030229,7]
[384826105,1757575689360,-791.03,0.00030229,7]
[384826106,1757575689389,-400.0,0.00030229,7]
[384826107,1757575689420,-400.0,0.00030229,7]
[384826108,1757575689452,-400.0,0.00030229,7]
[384826109,1757575689481,-400.0,0.00030229,7]
[384826110,1757575689509,-400.0,0.00030229,7]
[384826111,1757575689540,-400.0,0.00030229,7]
[384826112,1757575689569,-400.0,0.00030229,7]
[384826113,1757575689599,-1085.22,0.00030229,7]
[384826114,1757575689628,-500.08,0.00030229,7]
[384826115,1757575689661,-6683.2,0.00030229,7]
[384826116,1757575689690,-402.67407926,0.00030229,7]
[384826117,1757575689719,-400.0,0.00030229,7]
[384826118,1757575689752,-2124.71,0.00030229,7]
[384826119,1757575689782,-413.74314675,0.00030229,7]
[384826120,1757575689813,-400.0,0.00030229,7]
[384826121,1757575689845,-407.37205499,0.00030229,7]
[384826122,1757575689878,-400.0,0.00030229,7]
[384826123,1757575689909,-400.0,0.00030229,7]
[384826124,1757575689942,-404.22154028,0.00030229,7]
[384826125,1757575689975,-400.0,0.00030229,7]
[384826126,1757575690009,-2568.48,0.00030229,7]
[384826127,1757575690043,-400.0,0.00030229,7]
[384826128,1757575690077,-400.0,0.00030229,7]
[384826129,1757575690108,-1219.06,0.00030229,7]
[384826130,1757575690140,-561.21,0.00030229,7]
[384826131,1757575690171,-400.0,0.00030229,7]
[384826132,1757575690202,-400.0,0.00030229,7]
[384826133,1757575690231,-400.0,0.00030229,7]
[384826134,1757575690260,-716.29,0.00030229,7]
[384826135,1757575690290,-400.0,0.00030229,7]
[384826136,1757575690319,-400.0,0.00030229,7]
[384826137,1757575690350,-675.1,0.00030229,7]
[384826138,1757575690380,-400.0,0.00030229,7]
[384826139,1757575690410,-400.0,0.00030229,7]
[384826140,1757575690438,-400.0,0.00030229,7]
[384826141,1757575690466,-1113.32,0.00030229,7]
[384826142,1757575690494,-400.0,0.00030229,7]
[384826143,1757575690522,-473.34,0.00030229,7]
[384826144,1757575690550,-400.0,0.00030229,7]
[384826145,1757575690579,-909.46,0.00030229,7]
[384826146,1757575690606,-361.14617682,0.00030229,7]
[384826147,1757575690635,-400.0,0.00030229,7]
[384826148,1757575690664,-612.79,0.00030237,7]
[384826149,1757575690693,-645.63,0.00030237,7]
[384826150,1757575690722,-461.56,0.00030237,7]
[384826151,1757575690750,-777.7,0.00030237,7]
[384826152,1757575690779,-487.54,0.00030237,7]
[384826153,1757575690808,-1301.99,0.00030237,7]
[384826154,1757575690837,-403.9,0.00030237,7]
[384826155,1757575690866,-400.0,0.00030237,7]
[384826156,1757575690895,-463.19,0.00030237,7]
[384826157,1757575690925,-803.16,0.00030237,7]
[384826158,1757575690958,-616.75,0.00030237,7]
[384826159,1757575690990,-400.0,0.00030237,7]
[384826160,1757575691023,-400.0,0.00030237,7]
[384826161,1757575691054,-535.5,0.00030237,7]
[384826162,1757575691082,-400.0,0.00030237,7]
[384826163,1757575691113,-400.0,0.00030237,7]
[384826164,1757575691143,-400.0,0.00030237,7]
[384826165,1757575691172,-400.0,0.00030237,7]
[384826166,1757575691203,-739.14,0.00030237,7]
[384826167,1757575691233,-443.21,0.00030237,7]
[384826168,1757575691264,-400.0,0.00030237,7]
[384826169,1757575691294,-400.0,0.00030237,7]
[384826170,1757575691326,-815.14,0.00030237,7]
[384826171,1757575691358,-400.0,0.00030237,7]
[384826172,1757575691390,-400.0,0.00030237,7]
[384826173,1757575691423,-400.0,0.00030237,7]
[384826174,1757575691454,-638.22,0.00030237,7]
[384826175,1757575691485,-430.22619587,0.00030237,7]
[384826176,1757575691516,-400.0,0.00030237,7]
[384826177,1757575691546,-739.02,0.00030237,7]
[384826178,1757575691578,-400.0,0.00030237,7]
[384826179,1757575691611,-475.38,0.00030237,7]
[384826180,1757575691643,-772.19,0.00030237,7]
[384826181,1757575691674,-400.0,0.00030237,7]
[384826182,1757575691706,-400.0,0.00030237,7]
[384826183,1757575691740,-490.7,0.00030237,7]
[384826184,1757575691772,-439.79,0.00030237,7]
[384826185,1757575691802,-961.35,0.00030237,7]
[384826186,1757575691840,-529.43,0.00030237,7]
[384826187,1757575691871,-476.37,0.00030237,7]
[384826188,1757575691901,-674.67,0.00030237,7]
[384826189,1757575691932,-730.49,0.00030237,7]
[384826190,1757575691963,-400.0,0.00030237,7]
[384826191,1757575691995,-659.8,0.00030237,7]
[384826192,1757575692026,-564.39,0.00030237,7]
[384826193,1757575692057,-400.0,0.00030237,7]
[384826194,1757575692088,-792.39,0.00030237,7]
[384826195,1757575692325,-483.7,0.00030237,7]
[384826196,1757575692358,-400.0,0.00030237,7]
[384826197,1757575692390,-400.0,0.00030237,7]
[384826198,1757575692425,-914.78,0.00030237,7]
[384826199,1757575692456,-752.94,0.00030237,7]
[384826200,1757575692487,-400.0,0.00030237,7]
[384826201,1757575692518,-497.41,0.00030237,7]
[384826202,1757575692548,-511.92,0.00030237,7]
[384826203,1757575692579,-448.18,0.00030237,7]
[384826204,1757575692610,-400.0,0.00030237,7]
[384826205,1757575692641,-817.73,0.00030237,7]
[384826206,1757575692673,-400.0,0.00030237,7]
[384826207,1757575692703,-400.0,0.00030237,7]
[384826208,1757575692736,-704.91,0.00030237,7]
[384826209,1757575692767,-400.0,0.00030237,7]
[384826210,1757575692804,-644.74,0.00030237,7]
[384826211,1757575692837,-664.13,0.00030237,7]
[384826212,1757575692872,-2512.55,0.00030237,7]
[384826213,1757575692904,-520.06,0.00030237,7]
[384826214,1757575692935,-3023.24,0.00030237,7]
[384826215,1757575692966,-582.78,0.00030237,7]
[384826216,1757575692998,-925.54,0.00030237,7]
[384826217,1757575693028,-206.01747842,0.00030237,7]
[384826218,1757575693060,-400.0,0.00030237,7]
[384826219,1757575693092,-909.49,0.00030237,7]
[384826220,1757575693122,-1731.66,0.00030237,7]
[384826221,1757575693153,-400.0,0.00030237,7]
[384826222,1757575693184,-674.31,0.00030237,7]
[384826223,1757575693221,-1115.19,0.00030237,7]
[384826224,1757575693252,-400.0,0.00030237,7]
[384826225,1757575693284,-797.34,0.00030237,7]
[384826226,1757575693315,-400.0,0.00030237,7]
[384826227,1757575693346,-400.0,0.00030237,7]
[384826228,1757575693377,-400.0,0.00030237,7]
[384826229,1757575693409,-561.82,0.00030237,7]
[384826230,1757575693442,-934.84,0.00030237,7]
[384826231,1757575693475,-500.81,0.00030237,7]
[384826232,1757575693506,-400.0,0.00030237,7]
[384826233,1757575693538,-693.33,0.00030237,7]
[384826234,1757575693568,-610.36,0.00030237,7]
[384826235,1757575693649,-400.0,0.00030237,7]
[384826236,1757575693727,-400.0,0.00030237,7]
[384826237,1757575693805,-1289.72,0.00030237,7]
[384826238,1757575693886,-400.0,0.00030237,7]